bitfinex-derivatives/quotes_SOLF0:USTF0_20251201
["timestamp","ask_amount","ask_price","bid_price","bid_amount"]
[1764593345829,7.1638,125.67,125.65,0.05895499]
[1764593346430,7.1638,125.67,125.65,3.37895499]
[1764593346832,7.1638,125.67,125.65,0.05895499]
[1764593347627,118.5982,125.67,125.65,0.05895499]
[1764593347835,7.1654,125.64,125.57,7.1687]
[1764593348029,111.4655,125.64,125.57,3.32]
[1764593348533,7.1665,125.62,125.57,3.32]
[1764593349033,7.1652,125.65,125.6,3.32]
[1764593349237,111.4082,125.7,125.6,3.32]
[1764593349436,7.1626,125.69,125.63,3.32]
[1764593349634,111.436,125.67,125.59,3.32]
[1764593350033,0.0539392,125.64,125.62,0.05863376]
[1764593350233,0.0539392,125.64,125.62,3.37863376]
[1764593350737,7.1626,125.69,125.62,10.54483376]
[1764593350936,111.3939,125.72,125.63,3.32]
[1764593351930,0.05752936,125.69,125.66,0.06111496]
[1764593352330,113.07552936,125.69,125.6,3.32]
[1764593352532,111.4432,125.66,125.56,4.70529517]
[1764593352733,111.4087,125.7,125.57,36.26834472]
[1764593352934,118.79504472,125.73,125.6,7.40834472]
[1764593353130,118.79504472,125.73,125.52,365.91974472]
[1764593353131,117.13237395,125.72,125.56,111.5301]
[1764593353334,0.05589855,125.65,125.63,0.05355187]
[1764593353637,0.05938525,125.65,125.63,0.05254223]
[1764593355139,0.05938525,125.65,125.63,3.37254223]
[1764593355930,126.05816923,125.73,125.63,3.37254223]
[1764593355931,5.88266232,125.71,125.63,3.37254223]
[1764593356128,126.04466923,125.74,125.64,3.32]
[1764593356333,5.8892267,125.73,125.64,3.32]
[1764593356526,7.1614,125.71,125.64,3.32]
[1764593356736,111.3841,125.73,125.64,3.32]
[1764593356925,111.3976,125.71,125.67,0.0558293]
[1764593357243,0.05168784,125.7,125.67,0.0558293]
[1764593357542,7.1626,125.69,125.67,7.43033938]
[1764593357843,111.46158784,125.7,125.64,13.15268011]
[1764593358039,0.05168784,125.7,125.64,9.83268011]
[1764593358241,0.05168784,125.7,125.65,13.15268011]
[1764593358448,7.1613,125.71,125.65,9.83268011]
[1764593358739,111.4255,125.68,125.63,9.83268011]
[1764593358933,111.4427,125.66,125.61,9.83268011]
[1764593359139,111.4688,125.63,125.6,9.83268011]
[1764593359340,111.4773,125.62,125.59,9.83268011]
[1764593359644,111.4688,125.63,125.58,14.74902017]
[1764593359645,7.1673,125.61,125.58,9.83268011]
[1764593359947,7.1673,125.61,125.59,0.05141864]
[1764593360239,7.1673,125.61,125.53,3.32]
[1764593360240,111.5237,125.57,125.49,1.95804413]
[1764593360449,111.6119,125.47,125.41,19.690352]
[1764593360639,7.40834472,125.45,125.42,1.38650942]
[1764593360941,111.6007,125.49,125.4,4.89412407]
[1764593360942,223.3246,125.42,125.4,2.407e-05]
[1764593361141,230.5026,125.42,125.4,2.407e-05]
[1764593361333,227.95242775,125.42,125.4,3.29002407]
[1764593361533,220.82858917,125.42,125.4,3.34569795]
[1764593361744,0.05416142,125.42,125.4,3.34569795]
[1764593362139,0.05416142,125.42,125.4,0.05569795]
[1764593362334,0.05416142,125.42,125.4,3.34569795]
[1764593362537,111.5967,125.49,125.41,3.29]
[1764593363043,111.5882,125.5,125.41,3.29]
[1764593363345,111.5812,125.51,125.43,3.29]
[1764593363541,0.05147155,125.47,125.45,3.29]
[1764593363747,118.7416,125.52,125.45,3.29]
[1764593364445,111.5257,125.57,125.48,3.29]
[1764593364642,0.05404026,125.54,125.51,0.06071244]
[1764593364848,0.05404026,125.54,125.51,3.35071244]
[1764593365341,111.5208,125.58,125.52,10.69834472]
[1764593365543,111.4754,125.63,125.54,7.40834472]
[1764593365841,111.4754,125.63,125.56,3.29]
[1764593366252,0.06085772,125.61,125.58,3.35050579]
[1764593366547,111.4442,125.66,125.59,3.29]
[1764593366749,111.4442,125.66,125.6,7.40834472]
[1764593366954,111.4611,125.64,125.55,3.29]
[1764593367137,111.4712,125.63,125.56,3.29]
[1764593367543,0.0548424,125.61,125.58,0.054545]
[1764593368041,111.5465424,125.61,125.58,0.054545]
[1764593368439,118.7135424,125.61,125.58,0.054545]
[1764593368847,0.0548424,125.61,125.58,0.054545]
[1764593370552,0.0548424,125.61,125.58,3.184545]
[1764593371050,0.0548424,125.61,125.59,65.13]
[1764593371246,0.0548424,125.61,125.58,0.054545]
[1764593372240,111.4951,125.6,125.58,0.054545]
[1764593372656,0.0548424,125.61,125.58,0.054545]
[1764593373348,111.4975,125.6,125.58,0.054545]
[1764593373654,111.5219,125.57,125.5,3.13]
[1764593374050,118.6915,125.57,125.5,3.13]
[1764593374353,111.5306,125.56,125.5,65.13]
[1764593374545,111.5395,125.55,125.46,3.13]
[1764593374744,111.5773,125.51,125.49,0.06101673]
[1764593374949,111.63425498,125.51,125.49,0.05914926]
[1764593375351,0.05695498,125.51,125.49,0.05914926]
[1764593376250,111.63465498,125.51,125.49,0.05914926]
[1764593376553,0.05695498,125.51,125.49,0.05914926]
[1764593376749,0.05695498,125.51,125.49,3.18914926]
[1764593376942,111.5102,125.59,125.49,4.78914926]
[1764593377141,111.5044,125.59,125.49,3.13]
[1764593377353,111.5229,125.57,125.49,3.13]
[1764593377545,111.5404,125.55,125.5,62.0]
[1764593377752,111.5404,125.55,125.47,3.13]
[1764593377951,7.1691,125.58,125.5,3.18628651]
[1764593378148,111.4973,125.6,125.5,3.13]
[1764593378354,111.5132,125.58,125.51,3.13]
[1764593378756,111.5044,125.59,125.51,3.13]
[1764593378954,111.4813,125.62,125.54,0.05433075]
[1764593379152,0.05100847,125.59,125.57,0.05926376]
[1764593379355,0.05100847,125.59,125.57,3.18926376]
[1764593379549,111.4568,125.65,125.57,3.18926376]
[1764593379550,111.4428,125.66,125.57,4.78926376]
[1764593379746,7.1635,125.67,125.59,3.13]
[1764593380151,7.1635,125.67,125.6,3.13]
[1764593380353,7.1626,125.69,125.63,3.13]
[1764593380551,111.3717,125.74,125.66,3.13]
[1764593380963,111.4031,125.71,125.65,62.0]
[1764593381553,7.21576976,125.69,125.67,0.05950399]
[1764593381954,0.05326976,125.69,125.67,0.05950399]
[1764593382158,0.05326976,125.69,125.67,3.18950399]
[1764593382654,0.05326976,125.69,125.67,0.05950399]
[1764593383556,111.4307,125.68,125.59,3.13]
[1764593383745,222.9122,125.65,125.56,3.13]
[1764593383947,111.4341,125.67,125.58,3.13]
[1764593384152,111.4307,125.68,125.58,3.13]
[1764593384358,111.4307,125.68,125.59,3.13]
[1764593384560,111.4307,125.68,125.6,65.13]
[1764593384762,0.05115992,125.65,125.62,3.19115318]
[1764593385363,0.05115992,125.65,125.62,0.06115318]
[1764593386261,7.1652,125.64,125.62,0.06115318]
[1764593386558,118.626,125.64,125.62,0.06115318]
[1764593387064,0.05115992,125.65,125.62,3.19115318]
[1764593387859,0.05115992,125.65,125.62,0.06115318]
[1764593388258,111.4604,125.64,125.62,0.06115318]
[1764593388865,111.4869,125.61,125.54,3.13]
[1764593389860,0.05012109,125.59,125.57,3.13]
[1764593391365,111.4621,125.64,125.57,3.13]
[1764593391565,7.1665,125.62,125.57,3.13]
[1764593391758,7.1665,125.62,125.58,3.29]
[1764593391958,111.4708,125.63,125.58,3.29]
[1764593392165,7.1677,125.6,125.54,3.29]
[1764593392363,0.05705854,125.58,125.56,3.34977547]
[1764593394370,111.4657,125.64,125.56,3.34977547]
[1764593394562,111.4657,125.64,125.56,3.29]
[1764593394759,111.4368,125.67,125.57,3.29]
[1764593394956,111.4425,125.66,125.57,3.29]
[1764593395156,111.4425,125.66,125.59,3.29]
[1764593395368,111.4425,125.66,125.58,90.76]
[1764593395369,111.4774,125.62,125.58,62.0]
[1764593395555,111.4774,125.62,125.61,0.05767634]
[1764593395758,7.1669,125.61,125.6,0.0540259]
[1764593397466,111.5108,125.59,125.54,3.29]
[1764593397966,111.4996,125.6,125.54,3.29]
[1764593398471,0.05717751,125.58,125.56,0.05581123]
[1764593398670,7.22587751,125.58,125.56,3.34581123]
[1764593398869,0.05717751,125.58,125.56,3.34581123]
[1764593399066,111.4371,125.67,125.57,3.29]
[1764593399371,111.4331,125.67,125.58,3.29]
[1764593399670,111.4198,125.69,125.58,3.29]
[1764593399862,111.433,125.67,125.6,3.29]
[1764593400173,0.05119214,125.65,125.62,0.05587355]
[1764593400667,7.1654,125.64,125.62,0.05587355]
[1764593401374,111.5132,125.58,125.48,3.29]
[1764593401667,7.171,125.54,125.48,3.29]
[1764593401870,111.5292,125.57,125.48,3.29]
[1764593402071,111.5292,125.57,125.49,32.09]
[1764593402260,0.05977354,125.54,125.52,3.29]
[1764593402574,111.4888,125.61,125.52,3.34337567]
[1764593402875,111.4825,125.62,125.53,3.29]
[1764593403064,7.1695,125.57,125.51,3.29]
[1764593403265,111.4937,125.61,125.51,3.29]
[1764593403471,111.4825,125.62,125.55,0.05746566]
[1764593403665,0.05226795,125.6,125.56,3.29]
[1764593403974,111.4556,125.65,125.57,3.34693334]
[1764593404175,111.4466,125.66,125.55,11.65363164]
[1764593404176,111.4466,125.66,125.58,62.0]
[1764593404471,111.4466,125.66,125.59,3.29]
[1764593404668,111.4177,125.69,125.59,3.29]
[1764593404873,111.4011,125.71,125.62,3.29]
[1764593405060,111.4011,125.71,125.64,3.29]
[1764593405373,7.1612,125.72,125.66,3.29]
[1764593405972,7.1612,125.72,125.64,11.65363164]
[1764593405973,7.1595,125.74,125.68,3.29]
[1764593406571,0.05176242,125.72,125.71,3.29]
[1764593406870,7.1583,125.77,125.71,3.29]
[1764593407564,118.4872,125.79,125.71,3.29]
[1764593407967,0.02408505,125.76,125.74,3.34094136]
[1764593408173,7.1554,125.82,125.74,3.34094136]
[1764593408368,111.2873,125.84,125.77,3.29]
[1764593409069,111.2873,125.84,125.8,3.29]
[1764593409282,111.2651,125.86,125.8,32.05]
[1764593409283,118.4179,125.86,125.8,32.05]
[1764593409479,111.2297,125.9,125.82,3.34318343]
[1764593409674,111.2297,125.9,125.85,0.0605359]
[1764593410172,111.1994,125.94,125.85,3.3505359]
[1764593410366,111.1975,125.94,125.88,0.05210325]
[1764593410570,7.1485,125.94,125.88,3.34210325]
[1764593410768,118.3432,125.94,125.88,3.34210325]
[1764593410970,111.183,125.96,125.88,3.34210325]
[1764593411169,111.183,125.96,125.91,0.05085568]
[1764593411573,111.1699,125.97,125.91,0.05085568]
[1764593411786,111.1616,125.98,125.91,0.05085568]
[1764593411975,7.146,125.98,125.91,0.05085568]
[1764593412273,111.162,125.98,125.91,0.05085568]
[1764593412481,122.80663164,125.99,125.91,0.05085568]
[1764593412675,28.76,126.03,125.91,0.05085568]
[1764593412676,28.76,126.03,125.94,0.0574141]
[1764593412869,111.1169,126.03,125.97,0.05652629]
[1764593413181,111.1351,126.01,125.97,0.05652629]
[1764593413574,111.1525,125.99,125.97,0.05652629]
[1764593413882,111.1172,126.03,125.97,0.05652629]
[1764593414073,111.1176,126.03,125.97,0.05652629]
[1764593414269,118.2531,126.04,125.97,0.05652629]
[1764593414779,111.1046,126.05,125.97,0.05652629]
[1764593414983,111.1046,126.05,126.0,0.05587342]
[1764593415171,111.0829,126.07,126.0,0.05587342]
[1764593415372,111.0909,126.06,126.0,0.05587342]
[1764593415876,28.74,126.09,126.0,0.05587342]
[1764593416069,111.0561,126.1,126.03,0.0502476]
[1764593416270,111.0382,126.12,126.03,0.0502476]
[1764593416474,111.0382,126.12,126.06,0.05315167]
[1764593416475,111.0467,126.11,126.06,0.05315167]
[1764593416674,122.69183164,126.12,126.06,0.05315167]
[1764593416879,11.65363164,126.14,126.06,0.05315167]
[1764593417083,122.67443164,126.14,126.0,3.29]
[1764593417285,111.0228,126.14,126.0,3.29]
[1764593417470,28.7,126.15,126.06,0.05430282]
[1764593417787,111.0471,126.11,126.09,0.05640088]
[1764593417977,111.0659,126.09,126.0,3.29]
[1764593418169,111.0414,126.12,126.0,3.29]
[1764593418691,111.0647,126.09,126.0,31.99]
[1764593418981,111.14460088,126.06,126.03,0.05369674]
[1764593419177,0.05640088,126.06,126.03,0.05369674]
[1764593419973,111.15120088,126.06,126.03,0.05369674]
[1764593421277,7.19800088,126.06,126.03,3.18369674]
[1764593421473,111.0208,126.14,126.06,3.13]
[1764593421674,111.0089,126.15,126.08,3.13]
[1764593421883,118.1455,126.15,126.08,3.13]
[1764593422081,110.9937,126.17,126.08,3.13]
[1764593422282,111.0048,126.16,126.08,3.13]
[1764593422479,111.0121,126.15,126.11,0.05361481]
[1764593422679,111.0219,126.14,126.11,0.05361481]
[1764593423287,118.1591,126.14,126.11,0.05361481]
[1764593423984,7.1379,126.12,126.11,0.05361481]
[1764593426788,111.0543,126.1,126.04,3.13]
[1764593426990,111.0449,126.11,126.04,3.13]
[1764593427191,118.1751,126.12,126.04,3.13]
[1764593427580,118.1751,126.12,126.03,7.1425]
[1764593427581,0.05361481,126.09,126.07,3.18547961]
[1764593429679,0.05361481,126.09,126.07,0.05547961]
[1764593430290,0.05361481,126.09,126.07,3.11547961]
[1764593431394,0.05361481,126.09,126.07,0.05547961]
[1764593433092,7.19351481,126.09,126.07,0.05547961]
[1764593433293,111.0777,126.08,125.99,3.06]
[1764593433495,111.0887,126.06,126.0,3.06]
[1764593433698,111.0993,126.05,125.96,3.06]
[1764593433999,111.0591,126.1,125.98,3.06]
[1764593434294,0.05011632,126.05,126.03,0.05266321]
[1764593434497,0.05040119,126.05,126.03,0.05266321]
[1764593435292,118.29040119,126.05,126.03,0.05266321]
[1764593436292,118.29040119,126.05,125.97,3.06]
[1764593436293,7.1442,126.01,125.97,3.06]
[1764593437291,0.05958829,126.0,125.98,3.11735168]
[1764593437505,0.05073093,126.0,125.98,3.11200545]
[1764593438397,7.19563093,126.0,125.98,0.05200545]
[1764593438798,0.05073093,126.0,125.98,0.05200545]
[1764593439102,0.05073093,126.0,125.98,3.11200545]
[1764593439305,7.1427,126.04,125.98,3.11200545]
[1764593439498,7.1427,126.04,125.98,3.06]
[1764593439694,7.1427,126.04,125.98,65.06]
[1764593439896,111.0859,126.07,125.99,3.06]
[1764593440100,111.0882,126.06,125.99,3.06]
[1764593440499,7.19981195,126.04,126.01,3.11696595]
[1764593440802,7.19981195,126.04,126.01,0.05696595]
[1764593441706,0.05701195,126.04,126.01,3.11696595]
[1764593442401,7.1399,126.09,126.03,3.06]
[1764593442797,111.041,126.12,126.04,3.06]
[1764593443105,7.1387,126.11,126.04,3.06]
[1764593443306,0.05401475,126.09,126.06,3.11611614]
[1764593445702,0.05401475,126.09,126.06,0.05611614]
[1764593446399,7.19411475,126.09,126.06,0.05611614]
[1764593446813,0.05401475,126.09,126.06,3.11611614]
[1764593448298,7.1387,126.11,126.06,3.11611614]
[1764593448504,111.0153,126.15,126.07,3.06]
[1764593448909,7.1375,126.13,126.08,3.06]
[1764593449303,7.1375,126.13,126.09,0.05915826]
[1764593449509,7.1375,126.13,126.09,3.11915826]
[1764593450207,7.1366,126.15,126.09,3.11915826]
[1764593450409,111.001,126.16,126.09,3.11915826]
[1764593450608,111.001,126.16,126.11,0.05232418]
[1764593450912,110.9797,126.19,126.11,0.05232418]
[1764593451110,110.9829,126.18,126.14,0.05111744]
[1764593451305,7.1358,126.16,126.14,0.05111744]
[1764593452415,7.1347,126.18,126.14,3.15111744]
[1764593455018,110.9677,126.2,126.14,3.15111744]
[1764593455210,110.9627,126.21,126.14,3.15111744]
[1764593455414,5.83621082,126.2,126.14,3.15111744]
[1764593455607,12.97031082,126.19,126.14,3.15111744]
[1764593455808,110.9484,126.22,126.14,3.15111744]
[1764593456004,116.79580419,126.21,126.17,0.06021797]
[1764593456203,7.1341,126.19,126.17,0.06021797]
[1764593456404,5.83670419,126.18,126.17,0.06021797]
[1764593457411,110.9916,126.17,126.11,3.1]
[1764593457717,5.83670419,126.16,126.11,3.1]
[1764593457915,110.9916,126.17,126.11,3.1]
[1764593458117,7.25877526,126.22,126.17,3.1]
[1764593458412,9.76593215,126.28,126.17,3.1]
[1764593458614,7.83498438,126.27,126.18,3.1]
[1764593458809,0.05517472,126.24,126.21,3.1606623]
[1764593459011,0.05517472,126.24,126.21,0.0606623]
[1764593459620,118.0708,126.23,126.21,0.0606623]
[1764593459823,7.132,126.23,126.21,0.0606623]
[1764593461221,0.05517472,126.24,126.21,3.1606623]
[1764593461519,110.8658,126.32,126.23,3.1]
[1764593461721,5.63180604,126.31,126.25,3.1]
[1764593462029,110.849,126.34,126.26,3.1]
[1764593462215,117.9571,126.36,126.29,3.1]
[1764593462529,110.7917,126.4,126.32,3.1]
[1764593462712,117.9139,126.4,126.32,3.1]
[1764593462912,7.1222,126.4,126.35,0.06094601]
[1764593463112,110.807,126.38,126.35,0.06094601]
[1764593463328,110.7995,126.39,126.35,0.06094601]
[1764593463528,7.1242,126.37,126.29,7.1282]
[1764593463716,7.1242,126.37,126.29,121.1129]
[1764593464018,110.7886,126.41,126.31,3.1]
[1764593464226,7.1225,126.4,126.33,7.1261]
[1764593464417,110.762,126.44,126.34,3.1]
[1764593464616,115.60178062,126.45,126.38,3.15789613]
[1764593464617,0.05489092,126.4,126.38,3.15789613]
[1764593464818,0.05780065,126.4,126.38,0.05789613]
[1764593465217,115.59878062,126.45,126.38,3.15789613]
[1764593465517,110.7444,126.46,126.39,7.5766488]
[1764593465719,7.12,126.44,126.4,7.5766488]
[1764593465920,7.12,126.44,126.37,3.1]
[1764593466123,117.8743,126.44,126.37,3.1]
[1764593466315,117.8743,126.44,126.39,0.05811899]
[1764593466717,118.124451,126.46,126.39,3.15811899]
[1764593466718,110.7444,126.46,126.39,3.15811899]
[1764593467021,110.7155,126.49,126.41,3.1]
[1764593467227,7.117,126.5,126.44,3.15393026]
[1764593467925,7.1153,126.53,126.46,3.1]
[1764593468119,7.1153,126.53,126.48,0.05480429]
[1764593468318,117.7925,126.53,126.48,0.05480429]
[1764593468816,7.1153,126.53,126.48,3.15480429]
[1764593469017,117.7644,126.56,126.48,3.15480429]
[1764593469224,110.6074,126.61,126.52,3.1]
[1764593469446,117.7107,126.62,126.55,0.05941911]
[1764593469729,110.6083,126.61,126.55,0.05941911]
[1764593469936,110.6176,126.6,126.55,0.05941911]
[1764593470138,7.380051,126.61,126.55,0.05941911]
[1764593470325,110.654,126.56,126.46,3.1]
[1764593470528,110.6618,126.55,126.46,3.1]
[1764593470837,1.37505927,126.63,126.5,3.1]
[1764593470838,7.380051,126.61,126.5,3.1]
[1764593471134,110.5951,126.63,126.52,3.1]
[1764593471435,7.380051,126.66,126.55,3.1]
[1764593471626,7.380051,126.66,126.57,3.1]
[1764593471937,117.942051,126.66,126.53,3.1]
[1764593472137,110.5833,126.64,126.56,3.1]
[1764593472332,7.1101,126.62,126.53,3.1]
[1764593472534,110.542,126.69,126.55,3.1]
[1764593472732,125.033651,126.68,126.61,0.05194527]
[1764593472937,125.032351,126.68,126.63,0.06094251]
[1764593473227,110.5248,126.71,126.63,0.06094251]
[1764593473435,110.5248,126.71,126.62,3.1]
[1764593473436,110.4991,126.74,126.66,0.0535251]
[1764593473644,110.4991,126.74,126.69,0.05180569]
[1764593473931,117.868051,126.75,126.69,0.05180569]
[1764593473932,110.4857,126.75,126.69,0.05180569]
[1764593474122,28.58,126.76,126.69,0.05180569]
[1764593474324,124.998951,126.72,126.69,0.05180569]
[1764593474525,117.6163,126.72,126.69,0.05180569]
[1764593474938,117.895151,126.72,126.69,0.05180569]
[1764593475330,110.5304,126.7,126.61,3.1]
[1764593475534,117.6362,126.7,126.61,3.1]
[1764593475838,117.6362,126.7,126.61,65.1]
[1764593476139,117.62,126.72,126.61,3.1]
[1764593476437,0.0598714,126.68,126.65,0.05264247]
[1764593476740,0.0598714,126.68,126.65,3.15264247]
[1764593476937,7.380051,126.75,126.65,115.30094247]
[1764593477129,117.5525,126.79,126.68,3.1]
[1764593477325,7.380051,126.8,126.68,3.1]
[1764593477532,117.826651,126.8,126.68,3.1]
[1764593477727,110.5214,126.71,126.56,110.6453]
[1764593477935,117.910351,126.7,126.59,3.1]
[1764593478138,110.5576,126.67,126.63,0.05232563]
[1764593478332,110.5557,126.67,126.63,0.05232563]
[1764593478734,117.6703,126.66,126.63,0.05232563]
[1764593478941,110.5246,126.71,126.63,0.05232563]
[1764593479238,110.5246,126.71,126.59,3.1]
[1764593479239,117.6429,126.69,126.66,0.05007127]
[1764593479635,117.929051,126.68,126.66,0.05007127]
[1764593479836,7.1069,126.67,126.66,0.05007127]
[1764593480338,110.5749,126.65,126.55,31.7]
[1764593480540,7.1087,126.64,126.57,3.16]
[1764593481537,0.05156761,126.62,126.59,3.21252805]
[1764593482233,0.05156761,126.62,126.59,0.05252805]
[1764593483340,7.16156761,126.62,126.59,0.05252805]
[1764593483543,117.76146761,126.62,126.59,0.05252805]
[1764593483941,0.05156761,126.62,126.59,3.21252805]
[1764593484338,0.05156761,126.62,126.59,0.05252805]
[1764593485243,110.6237,126.59,126.51,3.16]
[1764593485442,110.6411,126.57,126.48,113.8739]
[1764593485634,118.003751,126.59,126.5,3.16]
[1764593485836,110.6408,126.57,126.46,113.8967]
[1764593486041,110.6586,126.55,126.46,142.4167]
[1764593486236,0.06049586,126.52,126.49,0.05477221]
[1764593487050,0.06049586,126.52,126.49,3.21477221]
[1764593487647,110.6419,126.57,126.49,3.21477221]
[1764593487846,110.6419,126.57,126.49,3.16]
[1764593488044,110.6237,126.59,126.49,3.16]
[1764593488349,110.6428,126.57,126.5,3.36]
[1764593488551,118.003751,126.59,126.5,3.36]
[1764593488747,0.0435998,126.56,126.53,0.05592104]
[1764593489045,0.0435998,126.56,126.53,3.41592104]
[1764593489642,110.5777,126.65,126.56,3.36]
[1764593489849,110.5489,126.68,126.59,3.36]
[1764593490253,110.5426,126.69,126.59,10.4711]
[1764593490454,110.5263,126.71,126.6,3.36]
[1764593490658,110.5368,126.69,126.64,0.0524494]
[1764593490856,110.5263,126.71,126.64,0.0524494]
[1764593491058,110.5033,126.73,126.64,3.4124494]
[1764593491354,110.4948,126.74,126.67,0.05252822]
[1764593491656,110.5104,126.72,126.67,0.05252822]
[1764593492049,7.1038,126.73,126.67,0.05252822]
[1764593492248,110.4837,126.75,126.67,0.05252822]
[1764593492447,110.4837,126.75,126.7,0.05694001]
[1764593492650,28.52,126.78,126.7,0.05694001]
[1764593492852,138.9796,126.78,126.73,0.05758935]
[1764593493072,110.4576,126.78,126.74,0.05514921]
[1764593493263,11.45725215,126.79,126.75,0.05869877]
[1764593493462,11.45725215,126.79,126.68,3.36]
[1764593493463,11.45725215,126.79,126.76,0.05824379]
[1764593493648,11.45725215,126.79,126.76,0.05200078]
[1764593494565,7.1011,126.78,126.76,0.05200078]
[1764593494756,4.80197486,126.82,126.76,0.05200078]
[1764593495853,110.4336,126.81,126.76,0.05200078]
[1764593496148,115.22687486,126.82,126.76,0.05200078]
[1764593496149,4.80197486,126.82,126.76,0.05200078]
[1764593496658,4.80197486,126.82,126.76,3.41200078]
[1764593496859,4.80197486,126.82,126.76,10.51360078]
[1764593497054,4.80197486,126.82,126.76,3.41200078]
[1764593497449,11.90087486,126.82,126.76,0.05200078]
[1764593497654,4.80197486,126.82,126.76,0.05200078]
[1764593497959,4.80197486,126.82,126.76,62.05200078]
[1764593498264,110.4415,126.8,126.76,0.05200078]
[1764593499057,7.1013,126.77,126.76,0.05200078]
[1764593499263,121.89105215,126.81,126.76,0.05200078]
[1764593499264,110.4338,126.81,126.76,0.05200078]
[1764593499560,7.1003,126.79,126.76,0.05200078]
[1764593499756,110.4599,126.78,126.76,0.05200078]
[1764593499951,110.4496,126.79,126.76,0.05200078]
[1764593500154,117.55,126.79,126.76,0.05200078]
[1764593500564,7.1013,126.77,126.76,0.05200078]
[1764593500762,117.5684,126.77,126.69,3.36]
[1764593500959,110.4938,126.74,126.65,3.36]
[1764593501167,11.45725215,126.78,126.63,94.72]
[1764593501354,7.1059,126.69,126.61,72.4699]
[1764593501555,110.5165,126.72,126.63,3.36]
[1764593501762,7.1061,126.69,126.63,3.36]
[1764593501960,0.05042381,126.67,126.65,0.05831347]
[1764593502465,7.15762381,126.67,126.65,0.05831347]
[1764593502767,117.71362381,126.67,126.65,0.05831347]
[1764593502969,7.1081,126.65,126.56,7.1127]
[1764593503155,7.1081,126.65,126.56,10.4727]
[1764593503466,7.1081,126.65,126.57,3.36]
[1764593503958,7.1069,126.68,126.6,3.36]
[1764593504152,7.1069,126.68,126.56,110.6429]
[1764593504153,110.5676,126.66,126.56,114.0029]
[1764593504557,110.571,126.65,126.56,3.36]
[1764593504865,110.5594,126.67,126.56,114.0082]
[1764593505065,110.5594,126.67,126.57,3.36]
[1764593505066,110.5632,126.66,126.57,3.36]
[1764593505366,110.5419,126.69,126.59,3.36]
[1764593505568,110.5253,126.71,126.6,3.36]
[1764593505765,117.6305,126.71,126.62,3.36]
[1764593505968,0.05145428,126.67,126.64,3.41298779]
[1764593506363,0.05145428,126.67,126.64,0.05298779]
[1764593506862,0.05145428,126.67,126.64,3.41298779]
[1764593507068,0.05145428,126.67,126.64,0.05298779]
[1764593507265,0.05145428,126.67,126.64,3.41298779]
[1764593507855,7.1041,126.72,126.64,3.41298779]
[1764593508056,7.1041,126.72,126.64,3.36]
[1764593508662,7.1054,126.7,126.64,3.36]
[1764593508858,0.05064644,126.68,126.66,0.05446054]
[1764593511361,110.59544644,126.68,126.66,0.05446054]
[1764593511764,0.05064644,126.68,126.66,0.05446054]
[1764593511968,110.4819,126.76,126.67,3.3]
[1764593512167,7.1029,126.75,126.68,3.3]
[1764593513169,7.1029,126.75,126.7,0.05288188]
[1764593513567,110.4641,126.78,126.7,3.35288188]
[1764593513774,110.4641,126.78,126.73,0.05712939]
[1764593513975,110.4471,126.8,126.73,0.05712939]
[1764593514277,110.4675,126.77,126.73,0.05712939]
[1764593514474,110.4675,126.77,126.74,0.05165018]
[1764593514966,110.4515,126.79,126.74,0.05165018]
[1764593515569,110.4672,126.77,126.74,0.05165018]
[1764593516066,7.101,126.78,126.74,3.35165018]
[1764593516567,7.1016,126.77,126.74,0.05165018]
[1764593516770,110.4662,126.77,126.74,0.05165018]
[1764593517273,7.1024,126.76,126.74,0.05165018]
[1764593517868,7.1047,126.72,126.66,3.3]
[1764593518082,110.4662,126.77,126.66,3.3]
[1764593518271,110.4748,126.76,126.67,10.4067]
[1764593518474,110.4682,126.77,126.67,10.4067]